fUST/lending_fUST_20250618
["ID","MTS","AMOUNT","RATE_DAILY","PERIOD"]
[366383490,1750223459089,-507.44346237,0.00024438,6]
[366383492,1750223459098,-3917.82170356,0.00024438,6]
[366383494,1750223459107,-559.43,0.00024438,6]
[366383496,1750223459117,-515.76,0.00024438,6]
[366383498,1750223459126,-1238.77,0.00024438,6]
[366383500,1750223459135,-1592.01320081,0.00024452,11]
[366383502,1750223459145,-2500.0,0.00024464,2]
[366383504,1750223459155,-224.54247563,0.00024468,2]
[366383506,1750223459164,-2505.34829344,0.00024489,2]
[366383508,1750223459173,-64581.05239253,0.000245,2]
[366383513,1750223459313,-832.24294486,0.000245,2]
[366383515,1750223459327,-5940.90303165,0.000245,2]
[366383526,1750223459428,-460.0,0.00021917,6]
[366383528,1750223459438,-460.0,0.00022246,6]
[366383530,1750223459448,-460.0,0.00022356,6]
[366383532,1750223459458,-460.0,0.00022465,6]
[366383535,1750223459468,-460.0,0.00022575,6]
[366383536,1750223459477,-460.0,0.00022684,6]
[366383538,1750223459487,-460.0,0.00022794,6]
[366383540,1750223459496,-460.0,0.00022904,6]
[366383542,1750223459506,-460.0,0.00023013,6]
[366383544,1750223459516,-460.0,0.00023123,6]
[366383546,1750223459525,-158.049088,0.000234,7]
[366383548,1750223459534,-158.049088,0.0002402,7]
[366383550,1750223459543,-158.049088,0.000244,7]
[366383553,1750223459553,-43676.06163096,0.000245,2]
[366383554,1750223459562,-233.119637,0.000245,7]
[366383557,1750223459571,-233.119629,0.000245,7]
[366383558,1750223459581,-211.762869,0.000245,7]
[366383560,1750223459591,-211.762869,0.000245,7]
[366383563,1750223459601,-158.049088,0.000245,7]
[366383565,1750223459610,-158.049083,0.000245,7]
[366383566,1750223459620,-291.82944297,0.00024515,2]
[366383568,1750223459629,-151.0,0.00024533,7]
[366383570,1750223459639,-151.0,0.000246,6]
[366383572,1750223459648,-188.0,0.000246,8]
[366383574,1750223459657,-2505.34829344,0.00024608,2]
[366383576,1750223459667,-151.0,0.00024639,7]
[366383578,1750223459676,-151.18516,0.00024655,7]
[366383580,1750223459686,-159.602353,0.00024655,7]
[366383582,1750223459696,-160.0,0.00024656,2]
[366383584,1750223459708,-1000.0,0.00024658,2]
[366383586,1750223459717,-380.0,0.00024658,2]
[366383588,1750223459726,-1000.0,0.00024658,2]
[366383590,1750223459736,-282.38310477,0.00024658,2]
[366383592,1750223459746,-1000.0,0.00024658,2]
[366383594,1750223459755,-1000.0,0.00024658,2]
[366383596,1750223459764,-1592.01320081,0.00024659,11]
[366383598,1750223459774,-5000.0,0.00024659,2]
[366383600,1750223459784,-500.0,0.0002467,2]
[366383602,1750223459794,-2505.34829344,0.00024728,2]
[366383604,1750223459803,-151.0,0.00024745,7]
[366383606,1750223459813,-500.0,0.0002475,2]
[366383608,1750223459822,-211.0,0.0002476,11]
[366383610,1750223459832,-151.0,0.00024795,2]
[366383612,1750223459842,-151.0,0.00024795,2]
[366383614,1750223459851,-500.0,0.00024795,2]
[366383616,1750223459860,-151.0,0.00024795,2]
[366383618,1750223459869,-151.0,0.00024795,2]
[366383620,1750223459879,-152.56297425,0.00024795,2]
[366383622,1750223459889,-151.0,0.00024795,2]
[366383624,1750223459898,-151.0,0.00024795,2]
[366383626,1750223459907,-151.0,0.00024795,2]
[366383628,1750223459916,-151.0,0.00024795,2]
[366383630,1750223459925,-500.0,0.00024795,2]
[366383632,1750223459936,-154.82575939,0.00024795,2]
[366383634,1750223459945,-153.89886875,0.00024795,2]
[366383636,1750223459954,-156.0768519,0.00024795,2]
[366383638,1750223459963,-151.0,0.00024795,2]
[366383640,1750223459973,-500.0,0.00024795,2]
[366383643,1750223459982,-198.775164,0.00024795,2]
[366383651,1750223460061,-151.0,0.00024795,2]
[366383653,1750223460073,-155.27225518,0.00024795,2]
[366383655,1750223460083,-151.0,0.00024795,2]
[366383657,1750223460093,-441.28826867,0.00024799,6]
[366383659,1750223460102,-947.89,0.00024799,6]
[366383661,1750223460112,-594.97,0.00024799,6]
[366383663,1750223460122,-460.0,0.00024799,6]
[366383665,1750223460131,-460.0,0.00024799,6]
[366383666,1750223460140,-460.0,0.00024799,6]
[366383668,1750223460150,-792.85,0.000248,7]
[366383670,1750223460159,-294.118235,0.000248,2]
[366383673,1750223460169,-188.0,0.000248,10]
[366383674,1750223460178,-777.0679972,0.000248,2]
[366383676,1750223460188,-59025.90202257,0.000248,2]
[366383716,1750223460570,-0.5093263,0.000248,2]
[366383733,1750223460722,-548.73,0.00021917,6]
[366383735,1750223460731,-503.31,0.00022027,6]
[366383737,1750223460741,-548.73,0.00022027,6]
[366383739,1750223460751,-503.31,0.00022136,6]
[366383741,1750223460759,-503.31,0.00022246,6]
[366383743,1750223460769,-503.31,0.00022356,6]
[366383744,1750223460780,-503.31,0.00022465,6]
[366383746,1750223460791,-503.31,0.00022575,6]
[366383748,1750223460800,-460.0,0.00023232,6]
[366383750,1750223460809,-460.0,0.00023342,6]
[366383752,1750223460821,-460.0,0.00023452,6]
[366383754,1750223460830,-460.0,0.00023561,6]
[366383756,1750223460839,-460.0,0.00023671,6]
[366383758,1750223460848,-510.671,0.0002371,2]
[366383760,1750223460857,-460.0,0.0002378,6]
[366383762,1750223460867,-460.0,0.0002389,6]
[366383764,1750223460876,-460.0,0.00024,6]
[366383766,1750223460886,-74.3520897,0.00024109,6]
[366383769,1750223460902,-548.73,0.00022136,6]
[366383771,1750223460912,-199.7779103,0.00024109,6]
[366383773,1750223460921,-177.1504183,0.00024329,2]
[366383775,1750223460931,-2554.74167149,0.000248,2]
[366383796,1750223461134,-357.85464959,0.00021917,6]
[366383798,1750223461144,-460.0,0.00021917,2]
[366383800,1750223461153,-464.03600329,0.00021917,6]
[366383802,1750223461163,-460.0,0.00021917,6]
[366383804,1750223461172,-460.0,0.00022027,2]
[366383805,1750223461181,-151.0,0.00022136,7]
[366383807,1750223461191,-460.0,0.00022136,2]
[366383809,1750223461200,-548.73,0.00022246,6]
[366383818,1750223461277,-460.0,0.00022246,2]
[366383821,1750223461288,-545.70077923,0.00022356,6]
[366383823,1750223461299,-3.02922077,0.00022356,6]
[366383825,1750223461309,-460.0,0.00022356,2]
[366383827,1750223461319,-548.73,0.00022465,6]
[366383829,1750223461329,-200.85,0.00022465,2]
[366383831,1750223461338,-92.44389162,0.00022575,6]
[366384110,1750223465563,-180.0,0.00018765,2]
[366384114,1750223465586,-12.3645068,0.00021269,2]
[366384171,1750223466534,-180.0,0.00021269,2]
[366384453,1750223469591,-259.68609354,0.00021917,6]
[366384458,1750223469631,-200.31390646,0.00021917,6]
[366384547,1750223470570,-500.0,0.00018765,2]
[366384624,1750223471598,-259.68609354,0.00021917,6]
[366384625,1750223471622,-200.31390646,0.00021917,6]
[366384626,1750223473809,-259.68609354,0.00021917,6]
[366384627,1750223473834,-105.14559028,0.00021917,6]
[366384628,1750223510865,-300.0,0.00018765,2]
[366384632,1750223685430,-300.0,0.00019813,2]
[366384636,1750223830556,-173.3,0.00019615,2]
[366384637,1750223849294,-153.17744513,0.00019615,2]
[366384638,1750223855994,-226.35468164,0.00019615,2]
[366384640,1750223871162,-200.0,0.000219,6]
[366384641,1750223965109,-247.56,0.00019615,2]
[366384642,1750223975591,-259.0,0.00019615,2]
[366384643,1750223985071,-320.7242476,0.00019615,2]
[366384644,1750224000465,-222.04152509,0.00019615,2]
[366384645,1750224008550,-195.7999762,0.00019615,2]
[366384646,1750224019735,-377.1471811,0.00019813,2]
[366384647,1750224024382,-160.0,0.00019813,2]
[366384648,1750224030568,-180.48467971,0.00019813,2]
[366384649,1750224035728,-171.0559228,0.000219,6]
[366384650,1750224074919,-160.0,0.00019813,2]
[366384651,1750224089625,-154.16074048,0.00019813,2]
[366384652,1750224100257,-160.0,0.00019813,2]
[366384653,1750224108201,-241.18550883,0.00021907,10]
[366384654,1750224112246,-183.66,0.00019813,2]
[366384655,1750224126137,-166.89531231,0.00019813,2]
[366384656,1750224130261,-180.27555046,0.00019813,2]
[366384657,1750224153435,-173.3,0.00019813,2]
[366384658,1750224204835,-157.37372947,0.00019615,2]
[366384659,1750224223269,-300.0,0.00019615,2]
[366384660,1750224234174,-151.85,0.00019615,2]
[366384661,1750224238520,-151.84589819,0.00019615,2]
[366384662,1750224255185,-285.2,0.00019615,2]
[366384663,1750224268481,-165.666,0.00019615,2]
[366384664,1750224284863,-197.97,0.00019615,2]
[366384665,1750224302675,-193.181,0.00019615,2]
[366384666,1750224306087,-220.48295748,0.00019615,2]
[366384667,1750224323645,168.27817,0.00013699,2]
[366384668,1750224355677,857.68426703,0.00025175,120]
[366384732,1750224632197,-5000.0,0.00019148,2]
[366384734,1750224632207,-354.88508334,0.000195,5]
[366384736,1750224632216,-160.808104,0.00019537,2]
[366384737,1750224632227,-346.38930112,0.00019728,2]
[366384738,1750224632236,-545.51,0.00019768,2]
[366384739,1750224632246,-173.2554744,0.00019792,2]
[366384740,1750224632256,-251.0,0.00019999,2]
[366384741,1750224632265,-300.0,0.00019999,2]
[366384742,1750224632274,-452.0,0.00019999,2]
[366384743,1750224632284,-3686.7702231,0.0002,2]
[366384746,1750224632295,-413.2297769,0.0002,2]
[366384747,1750224632304,-2703.08547944,0.00020156,2]
[366384749,1750224632314,-300.39,0.000202,6]
[366384750,1750224632323,-749.40296941,0.000203,3]
[366384751,1750224632332,-749.4029694,0.000203,3]
[366384752,1750224632342,-302.41911225,0.00020314,3]
[366384753,1750224632353,-446.98385715,0.00020314,3]
[366384754,1750224632362,-179.8999914,0.00020469,2]
[366384755,1750224632372,-300.0,0.0002048,2]
[366384756,1750224632381,-2572.7167796,0.00020482,2]
[366384757,1750224632391,-1803.75171754,0.00020482,2]
[366384758,1750224632402,-562.6195265,0.00020482,2]
[366384759,1750224632414,-1010.96841855,0.00020482,2]
[366384760,1750224632542,-1570.082566,0.00020482,2]
[366384761,1750224632554,-12630.37434212,0.00020482,2]
[366384762,1750224632564,-749.4029694,0.00020521,3]
[366384763,1750224632573,-293.122835,0.0002055,2]
[366384764,1750224632583,-749.4029694,0.00020728,3]
[366384765,1750224632592,-377.1471811,0.00020865,2]
[366384766,1750224632601,-170.36302251,0.00020865,2]
[366384767,1750224632610,-596.9965312,0.00020865,2]
[366384768,1750224632620,-7651.9822797,0.00020866,2]
[366384769,1750224632630,-749.4029694,0.00020934,4]
[366384770,1750224632639,-44757.74573529,0.00021,2]
[366384771,1750224632670,-349.74049063,0.00021,2]
[366384772,1750224632682,-884.86744297,0.00021,2]
[366384773,1750224632694,-452.66907278,0.00021,2]
[366384783,1750224637936,-500.0,0.00020999,2]
[366384784,1750224637946,-500.0,0.00020999,2]
[366384785,1750224637956,-185.52962282,0.00020999,2]
[366384786,1750224637968,-149.73812268,0.00020999,2]
[366384787,1750224637978,-169.80874249,0.00020999,2]
[366384788,1750224637995,-330.19125751,0.00020999,2]
[366384789,1750224638005,-500.0,0.00020999,2]
[366384790,1750224638014,-628.47780057,0.00020999,2]
[366384791,1750224638024,-500.0,0.00020999,2]
[366384792,1750224638033,-500.0,0.00020999,2]
[366384793,1750224638043,-500.0,0.00020999,2]
[366384794,1750224638053,-500.0,0.00020999,2]
[366384795,1750224638063,-500.0,0.00020999,2]
[366384796,1750224638073,-2003.24417801,0.00021,2]
[366384797,1750224638085,-5985.69652231,0.00021,2]
[366384798,1750224638096,-1292.53513919,0.00021,2]
[366384799,1750224638108,-4745.67031701,0.00021,2]
[366384800,1750224638119,-254.32968299,0.00021,2]
[366384831,1750224645151,-270.17652984,0.00021917,6]
[366384835,1750224645660,-613.06566377,0.00020789,2]
[366384836,1750224645673,-1766.6292463,0.00020789,2]
[366384837,1750224645746,-49.61789003,0.00020789,2]
[366384867,1750224646089,-371.92165845,0.000189,2]
[366384870,1750224646099,-2570.6871999,0.00020789,2]
[366384872,1750224646109,-35523.97858489,0.00021,2]
[366384873,1750224646119,-749.4029694,0.00021141,4]
[366384874,1750224646128,-749.4029694,0.00021348,5]
[366384875,1750224646138,-1450.32994056,0.000215,2]
[366384876,1750224646147,-749.4029694,0.00021555,5]
[366384877,1750224646156,-1091.02,0.00021565,2]
[366384878,1750224646165,-290.0,0.00021685,2]
[366384879,1750224646174,-160.0,0.00021691,2]
[366384880,1750224646187,-356.98027404,0.00021733,2]
[366384881,1750224646196,-749.4029694,0.00021762,5]
[366384882,1750224646205,-290.0,0.00021795,2]
[366384883,1750224646215,-290.0,0.00021802,2]
[366384884,1750224646225,-300.435,0.00021832,2]
[366384885,1750224646234,-177.414,0.00021832,2]
[366384886,1750224646243,-91.08807887,0.00021917,6]
[366384887,1750224646252,-224.32496668,0.00021917,6]
[366384888,1750224646261,-431.28113541,0.00021917,6]
[366384889,1750224646273,-460.0,0.00021917,6]
[366384890,1750224646282,-440.88902594,0.00021917,6]
[366384891,1750224646290,-460.0,0.00021917,6]
[366384892,1750224646299,-460.0,0.00021917,6]
[366384893,1750224646308,-461.33036164,0.00021917,6]
[366384894,1750224646317,-269.01895104,0.00021917,6]
[366384895,1750224646326,-460.0,0.00021917,6]
[366384896,1750224646335,-430.0,0.00021917,6]
[366384897,1750224646344,-460.0,0.00021917,6]
[366384898,1750224646353,-461.65818335,0.00021917,6]
[366384899,1750224646362,-460.82469286,0.00021917,6]
[366384900,1750224646372,-465.02623583,0.00021917,6]
[366384902,1750224646382,-460.0,0.00021917,6]
[366384904,1750224646393,-437.39857999,0.00021917,6]
[366384906,1750224646402,-460.0,0.00021917,6]
[366384908,1750224646412,-431.01332932,0.00021917,6]
[366384910,1750224646421,-460.0,0.00021917,6]
[366384912,1750224646431,-460.0,0.00021917,6]
[366384914,1750224646441,-466.03999046,0.00021917,6]
[366384916,1750224646451,-360.2096067,0.00021917,6]
[366384918,1750224646460,-460.0,0.00021917,6]
[366384920,1750224646469,-460.0,0.00021917,6]
[366384922,1750224646479,-460.0,0.00021917,6]
[366384924,1750224646489,-460.0,0.00021917,6]
[366384926,1750224646498,-460.0,0.00021917,6]
[366384928,1750224646508,-495.98546658,0.00021917,6]
[366384930,1750224646518,-460.0,0.00021917,6]
[366384932,1750224646527,-178.89348176,0.00021917,6]
[366384934,1750224646536,-460.0,0.00021917,6]
[366384936,1750224646546,-460.0,0.00021917,6]
[366384938,1750224646555,-445.34390082,0.00021917,6]
[366384940,1750224646565,-451.20349884,0.00021917,6]
[366384942,1750224646574,-460.0,0.00021917,6]
[366384944,1750224646583,-460.0,0.00021917,6]
[366384946,1750224646593,-469.71737091,0.00021917,6]
[366384948,1750224646603,-517.73402645,0.00021917,6]
[366384950,1750224646613,-460.0,0.00021917,6]
[366384952,1750224646622,-460.0,0.00021917,6]
[366384954,1750224646631,-419.31657302,0.00021917,6]
[366384956,1750224646641,-460.0,0.00021917,6]
[366384958,1750224646651,-460.0,0.00021917,6]
[366384960,1750224646661,-426.34965842,0.00021917,6]
[366384962,1750224646670,-460.0,0.00021917,6]
[366384964,1750224646680,-460.0,0.00021917,6]
[366384966,1750224646690,-402.58129094,0.00021917,6]
[366384968,1750224646699,-284.62934788,0.00021917,6]
[366384969,1750224646709,-342.32390117,0.00021917,6]
[366384970,1750224646718,-460.0,0.00021917,6]
[366384971,1750224646727,-460.0,0.00021917,6]
[366384972,1750224646736,-460.0,0.00021917,6]
[366384973,1750224646746,-416.63812256,0.00021917,6]
[366384974,1750224646755,-419.22318209,0.00021917,6]
[366384975,1750224646764,-438.98386774,0.00021917,6]
[366384976,1750224646773,-460.0,0.00021917,6]
[366384977,1750224646782,-460.0,0.00021917,6]
[366384978,1750224646791,-422.71679719,0.00021917,6]
[366384979,1750224646799,-460.0,0.00021917,6]
[366384980,1750224646808,-462.51689399,0.00021917,6]
[366384981,1750224646817,-424.98801689,0.00021917,6]
[366384982,1750224646827,-460.0,0.00021917,6]
[366384983,1750224646836,-424.0461632,0.00021917,6]
[366384984,1750224646845,-460.0,0.00021917,6]
[366384985,1750224646854,-460.0,0.00021917,6]
[366384986,1750224646863,-460.0,0.00021917,6]
[366384987,1750224646872,-559.78462286,0.00021917,6]
[366384988,1750224646881,-263.47910111,0.00021917,6]
[366384989,1750224646890,-410.0,0.00021917,6]
[366384990,1750224646899,-464.31835285,0.00021917,6]
[366384991,1750224646907,-460.0,0.00021917,6]
[366384992,1750224646917,-460.0,0.00021917,6]
[366384993,1750224646926,-460.0,0.00021917,6]
[366384994,1750224646935,-460.0,0.00021917,6]
[366384995,1750224646944,-420.0,0.00021917,6]
[366384996,1750224646953,-460.0,0.00021917,6]
[366384997,1750224646962,-460.0,0.00021917,6]
[366384998,1750224646971,-460.0,0.00021917,6]
[366384999,1750224646980,-460.0,0.00021917,6]
[366385000,1750224646989,-440.0,0.00021917,6]
[366385001,1750224646998,-420.0,0.00021917,6]
[366385002,1750224647007,-460.0,0.00021917,6]
[366385003,1750224647016,-460.0,0.00021917,6]
[366385004,1750224647025,-460.0,0.00021917,6]
[366385005,1750224647034,-410.0,0.00021917,6]
[366385006,1750224647043,-461.76357385,0.00021917,6]
[366385007,1750224647052,-416.08000112,0.00021917,6]
[366385008,1750224647061,-460.0,0.00021917,6]
[366385009,1750224647070,-460.0,0.00021917,6]
[366385010,1750224647079,-417.48198895,0.00021917,6]
[366385011,1750224647088,-400.0,0.00021917,6]
[366385012,1750224647097,-336.80177257,0.00021917,6]
[366385013,1750224647106,-460.0,0.00021917,6]
[366385014,1750224647114,-460.0,0.00021917,6]
[366385015,1750224647123,-460.0,0.00021917,6]
[366385016,1750224647132,-460.0,0.00021917,6]
[366385017,1750224647141,-460.0,0.00021917,6]
[366385018,1750224647151,-460.0,0.00021917,6]
[366385019,1750224647160,-436.34797716,0.00021917,6]
[366385020,1750224647168,-460.0,0.00021917,6]
[366385021,1750224647179,-460.0,0.00021917,6]
[366385022,1750224647190,-460.0,0.00021917,6]
[366385023,1750224647199,-432.7647138,0.00021917,6]
[366385024,1750224647209,-460.0,0.00021917,6]
[366385025,1750224647218,-460.0,0.00021917,6]
[366385026,1750224647228,-460.0,0.00021917,6]
[366385027,1750224647242,-603.29837282,0.00021917,6]
[366385028,1750224647251,-461.80331202,0.00021917,6]
[366385029,1750224647263,-460.0,0.00021917,6]
[366385030,1750224647273,-460.0,0.00021917,6]
[366385031,1750224647282,-460.0,0.00021917,6]
[366385032,1750224647291,-464.79938646,0.00021917,6]
[366385033,1750224647301,-460.0,0.00021917,6]
[366385034,1750224647310,-460.0,0.00021917,6]
[366385035,1750224647320,-460.0,0.00021917,6]
[366385036,1750224647329,-409.23312429,0.00021917,6]
[366385037,1750224647339,-599.43439861,0.00021917,6]
[366385038,1750224647458,-460.0,0.00021917,6]
[366385039,1750224647469,-460.0,0.00021917,6]
[366385040,1750224647478,-442.7751534,0.00021917,6]
[366385041,1750224647487,-460.0,0.00021917,6]
[366385042,1750224647497,-460.0,0.00021917,6]
[366385043,1750224647507,-460.0,0.00021917,6]
[366385044,1750224647516,-460.0,0.00021917,6]
[366385045,1750224647526,-460.0,0.00021917,6]
[366385046,1750224647536,-460.0,0.00021917,6]
[366385047,1750224647546,-173.74041701,0.00021917,6]
[366385048,1750224647555,-460.0,0.00021917,6]
[366385049,1750224647565,-460.0,0.00021917,6]
[366385050,1750224647574,-1785.25,0.00021917,6]
[366385051,1750224647584,-460.0,0.00021917,6]
[366385052,1750224647594,-460.0,0.00021917,6]
[366385053,1750224647603,-460.0,0.00021917,6]
[366385054,1750224647612,-460.0,0.00021917,6]
[366385055,1750224647622,-172.83495075,0.00021917,6]
[366385056,1750224647631,-804.33,0.00021917,6]
[366385057,1750224647641,-460.0,0.00021917,6]
[366385058,1750224647650,-405.88529134,0.00021917,6]
[366385059,1750224647660,-460.0,0.00021917,6]
[366385060,1750224647669,-431.22086168,0.00021917,6]
[366385061,1750224647679,-270.0427032,0.00021917,6]
[366385062,1750224647688,-533.36,0.00021917,6]
[366385063,1750224647697,-1004.3375849,0.00021917,6]
[366385064,1750224647707,-460.0,0.00021917,6]
[366385065,1750224647716,-459.3748151,0.00021917,6]
[366385066,1750224647725,-455.61222554,0.00021917,6]
[366385067,1750224647734,-460.0,0.00021917,6]
[366385068,1750224647744,-460.0,0.00021917,6]
[366385069,1750224647753,-743.65,0.00021917,6]
[366385070,1750224647762,-685.18,0.00021917,6]
[366385071,1750224647772,-460.0,0.00021917,6]
[366385072,1750224647781,-798.23,0.00021917,6]
[366385073,1750224647790,-460.0,0.00021917,6]
[366385074,1750224647799,-460.0,0.00021917,6]
[366385075,1750224647808,-460.0,0.00021917,6]
[366385076,1750224647818,-460.0,0.00021917,6]
[366385077,1750224647827,-460.0,0.00021917,6]
[366385078,1750224647836,-460.0,0.00021917,6]
[366385079,1750224647845,-460.0,0.00021917,6]
[366385080,1750224647854,-460.0,0.00021917,6]
[366385081,1750224647863,-460.0,0.00021917,6]
[366385082,1750224647872,-460.0,0.00021917,6]
[366385083,1750224647882,-460.0,0.00021917,6]
[366385084,1750224647892,-460.0,0.00021917,6]
[366385085,1750224647901,-460.0,0.00021917,6]
[366385086,1750224647910,-460.0,0.00021917,6]
[366385087,1750224647919,-400.0,0.00021917,6]
[366385088,1750224647929,-460.0,0.00021917,6]
[366385089,1750224647939,-460.0,0.00021917,6]
[366385090,1750224647948,-460.0,0.00021917,6]
[366385091,1750224647957,-472.12989429,0.00021917,6]
[366385092,1750224647967,-460.0,0.00021917,6]
[366385093,1750224647976,-446.87094928,0.00021917,6]
[366385094,1750224647985,-460.0,0.00021917,6]
[366385095,1750224647995,-460.0,0.00021917,6]
[366385096,1750224648004,-601.91,0.00021917,6]
[366385097,1750224648014,-460.0,0.00021917,6]
[366385098,1750224648023,-460.0,0.00021917,6]
[366385099,1750224648032,-460.0,0.00021917,6]
[366385100,1750224648041,-460.0,0.00021917,6]
[366385101,1750224648050,-460.0,0.00021917,6]
[366385102,1750224648060,-460.0,0.00021917,6]
[366385103,1750224648069,-386.73013728,0.00021917,6]
[366385104,1750224648078,-460.0,0.00021917,6]
[366385105,1750224648087,-460.0,0.00021917,6]
[366385106,1750224648097,-460.0,0.00021917,6]
[366385107,1750224648106,-420.0,0.00021917,6]
[366385108,1750224648115,-460.0,0.00021917,6]
[366385109,1750224648124,-460.0,0.00021917,6]
[366385110,1750224648134,-561.49,0.00021917,6]
[366385111,1750224648143,-451.72910033,0.00021917,6]
[366385112,1750224648152,-460.0,0.00021917,6]
[366385113,1750224648161,-391.40575744,0.00021917,6]
[366385114,1750224648171,-460.0,0.00021917,6]
[366385115,1750224648182,-460.0,0.00021917,6]
[366385116,1750224648191,-267.43553127,0.00021917,6]
[366385117,1750224648201,-471.02349585,0.00021917,6]
[366385118,1750224648210,-460.0,0.00021917,6]
[366385119,1750224648219,-460.0,0.00021917,6]
[366385120,1750224648229,-460.0,0.00021917,6]
[366385121,1750224648238,-460.0,0.00021917,6]
[366385122,1750224648247,-480.87708232,0.00021917,6]
[366385123,1750224648259,-434.32633136,0.00021917,6]
[366385124,1750224648269,-463.60057648,0.00021917,6]
[366385125,1750224648278,-460.0,0.00021917,6]
[366385126,1750224648288,-460.0,0.00021917,6]
[366385127,1750224648297,-460.0,0.00021917,6]
[366385128,1750224648307,-460.0,0.00021917,6]
[366385129,1750224648317,-460.0,0.00021917,6]
[366385130,1750224648326,-460.0,0.00021917,6]
[366385131,1750224648335,-2254.52,0.00021917,6]
[366385132,1750224648345,-460.0,0.00021917,6]
[366385133,1750224648354,-400.23941881,0.00021917,6]
[366385134,1750224648363,-460.0,0.00021917,6]
[366385135,1750224648372,-460.0,0.00021917,6]
[366385136,1750224648382,-460.0,0.00021917,6]
[366385137,1750224648391,-535.29,0.00021917,6]
[366385138,1750224648401,-245.9579736,0.00021917,6]
[366385139,1750224648410,-460.0,0.00021917,6]
[366385140,1750224648419,-460.0,0.00021917,6]
[366385141,1750224648429,-526.48,0.00021917,6]
[366385142,1750224648439,-460.0,0.00021917,6]
[366385143,1750224648448,-460.0,0.00021917,6]
[366385144,1750224648458,-460.0,0.00021917,6]
[366385145,1750224648467,-348.98118321,0.00021917,6]
[366385146,1750224648477,-373.52,0.00021917,6]
[366385147,1750224648487,-460.0,0.00021917,6]
[366385148,1750224648496,-462.56942213,0.00021917,6]
[366385149,1750224648505,-447.06430385,0.00021917,6]
[366385150,1750224648515,-460.0,0.00021917,6]
[366385151,1750224648525,-460.0,0.00021917,6]
[366385152,1750224648535,-460.0,0.00021917,6]
[366385153,1750224648544,-467.13643878,0.00021917,6]
[366385154,1750224648554,-432.32519125,0.00021917,6]
[366385155,1750224648563,-460.0,0.00021917,6]
[366385156,1750224648572,-460.0,0.00021917,6]
[366385157,1750224648581,-460.0,0.00021917,6]
[366385158,1750224648591,-460.0,0.00021917,6]
[366385159,1750224648600,-500.0,0.00021917,6]
[366385160,1750224648611,-500.0,0.00021917,6]
[366385161,1750224648621,-500.0,0.00021917,6]
[366385162,1750224648631,-500.0,0.00021917,6]
[366385163,1750224648640,-500.0,0.00021917,6]
[366385164,1750224648650,-460.0,0.00021917,6]
[366385165,1750224648661,-460.0,0.00021917,6]
[366385166,1750224648670,-460.0,0.00021917,6]
[366385167,1750224648679,-460.0,0.00021917,6]
[366385168,1750224648689,-295.05644496,0.00021917,6]
[366385169,1750224648699,-460.0,0.00021917,6]
[366385170,1750224648708,-700.55,0.00021917,6]
[366385171,1750224648717,-460.0,0.00021917,6]
[366385172,1750224648727,-749.4029694,0.00021969,6]
[366385173,1750224648737,-469.58064687,0.00021973,2]
[366385174,1750224648747,-500.0,0.00021973,2]
[366385175,1750224648757,-505.36277811,0.00021973,2]
[366385176,1750224648767,-501.63433246,0.00021973,2]
[366385177,1750224648777,-500.0,0.00021973,2]